Workbook

Sheet 1-2, 11-16, 25-30 сент.
A1: Школа | B1: МАОУ "Лицей-инженерный центр" | E1: Отд./корп | I1: День | J1: 2024-02-22
A3: Прием пищи | B3: Раздел | C3: № рец. | D3: Блюдо | E3: Выход, г | F3: Цена, руб | G3: Калорийность, ккал | H3: Белки,г | I3: Жиры,г | J3: Углеводы,г
A4: завтрак | B4: гор.блюдо | C4: 173/2015 г | D4: Каша вязкая молочная из полбяной крупы с маслом | E4: 150/5 | G4: 182 | H4: 5.92 | I4: 5.1 | J4: 28.00
B5: гор.блюдо | C5: ТТК 2021 г | D5: Сырники "Классические" со сгущенным молоком | E5: 2 шт/70/10 | G5: 168 | H5: 10 | I5: 8.1 | J5: 13.7
B6: фрукт | C6: 338/2015 г | D6: Плоды свежие (яблоки) | E6: 100 | G6: 47 | H6: 0.4 | I6: 0.4 | J6: 9.83
B7: гор.напиток | C7: ТТК 2021 г | D7: Напиток из шиповника | E7: 200 | G7: 41 | H7: 0.01 | J7: 10.18
B8: хлеб | D8: Батон | E8: 25 | G8: 66 | H8: 1.87 | I8: 0.72 | J8: 12.85
B9: Печенье | D9: Вафли весовые | E9: 1 шт/21 | G9: 114 | H9: 0.82 | I9: 6.40 | J9: 13.12
A10: ИТОГО | E10: 581 | G10: =SUM(G4:G9) -> 618 | H10: =SUM(H4:H9) -> 19.02 | I10: =SUM(I4:I9) -> 20.72 | J10: 87.68

Sheet 4-9, 18-23 сент.
A1: Школа | B1: - | E1: Отд./корп | I1: День
A3: Прием пищи | B3: Раздел | C3: № рец. | D3: Блюдо | E3: Выход, г | F3: Цена, руб | G3: Калорийность, ккал | H3: Белки,г | I3: Жиры,г | J3: Углеводы,г
A4: завтрак | B4: гор.блюдо | C4: ТТК 2020 | D4: Ежики с мясом и рисом в соусе томатном | E4: 100 | G4: 75 | H4: 4.60 | I4: 4.00 | J4: 5.23
B5: гор.блюдо | C5: №202/2015 г | D5: Макаронные изделия отварные | E5: 150 | G5: 207 | H5: 5.64 | I5: 4.46 | J5: 35.94
B6: гор.напиток | C6: №348/2015 | D6: Компот из плодов или ягод сушеных (урюк) | E6: 180 | G6: 51 | H6: 0.39 | I6: 0.04 | J6: 11.98
A7: понедельник | B7: закуска | C7: ТТК 2023 г | D7: Салат-бар (Морковь свежая порциями, капуста белокач., сыр, сухари, масло раст.) | E7: 60 | G7: 122 | H7: 3.91 | I7: 8.74 | J7: 6.6
B8: хлеб | C8: ТТК | D8: Хлебная корзина (хлеб пш., хлеб рж.-пш.) | E8: 40 | G8: 91 | H8: 2.52 | I8: 0.36 | J8: 18.84
B9: печенье | C9: АКТ 2021 г | D9: Печенье сдобное Вкусное | E9: 30 | G9: 47 | H9: 2.1 | I9: 2.1 | J9: 5.1
A10: ИТОГО | E10: =SUM(E4:E9) -> 560 | G10: 593 | H10: =SUM(H4:H5,H6:H8:H9) -> 19.16 | I10: =SUM(I4:I5,I6:I9) -> 19.70 | J10: =SUM(J4:J5,J6:J9) -> 83.69
A11: завтрак | B11: гор.блюдо | C11: ТТК 2022 г | D11: Котлеты "Аппетитные" | E11: 90 | G11: 158.00 | H11: 11.20 | I11: 4.45 | J11: 18.50
B12: гор.блюдо | C12: №312/2015 г | D12: Пюре картофельное | E12: 150 | G12: 169 | H12: 3.28 | I12: 7.28 | J12: 22.00
A13: вторник | B13: гор.напиток | C13: ТТК 2022 г | D13: Компот из замороженной компотной смеси | E13: 180 | G13: 36 | H13: 0.09 | I13: 0.02 | J13: 8.69
B14: закуска | C14: № 532/2013г, Самара | D14: Салат-бар (Огурцы свежая порциями, помидоры, фасоль конс., сухарики, масло раст.) | E14: 60 | G14: 90 | H14: 1.62 | I14: 6.1 | J14: 6.92
B15: хлеб | C15: ТТК | D15: Хлебная корзина (хлеб пш., хлеб рж.-пш.) | E15: 40 | G15: 91 | H15: 2.52 | I15: 0.36 | J15: 18.84
A16: ИТОГО | E16: =SUM(E11:E15) -> 520 | G16: =SUM(G11:G15) -> 544 | H16: =SUM(H11:H15) -> 18.71 | I16: =SUM(I11:I15) -> 18.21 | J16: =SUM(J11:J15) -> 74.95
A17: завтрак | B17: гор.блюдо | C17: ТТК 2021 г | D17: Плов с куриными грудками | E17: 200 | G17: 312 | H17: 14.01 | I17: 12.30 | J17: 35.20
A18: среда | B18: гор.напиток | C18: ТТК | D18: Компот из плодов или ягод сушеных (урюк) | E18: 180 | G18: 50 | H18: 0.06 | I18: 0.01 | J18: 11.90
B19: закуска | C19: № 532/2013г, Самара | D19: Салат-бар (Помидоры свежая порциями, капуста белокач., зел. горошек конс., сухарики, масло раст.) | E19: 60 | G19: 89 | H19: 1.55 | I19: 6.12 | J19: 6.63
B20: хлеб | C20: ТТК | D20: Хлебная корзина (хлеб пш., хлеб рж.-пш.) | E20: 40 | G20: 91 | H20: 2.52 | I20: 0.36 | J20: 18.84
B21: фрукт | C21: № 338/2015 | D21: Плодые свежие (яблоко) | E21: 120 | G21: 56 | H21: 0.48 | I21: 0.48 | J21: 11.76
A22: ИТОГО | E22: =SUM(E17:E21) -> 600 | G22: =SUM(G17:G21) -> 598 | H22: =SUM(H17:H21) -> 18.62 | I22: =SUM(I17:I21) -> 19.27 | J22: =SUM(J17:J21) -> 84.33
A23: завтрак | B23: гор.блюдо | C23: № 2023 г | D23: Котлеты Домашние | E23: 90 | G23: 118 | H23: 7.1 | I23: 5.1 | J23: 10.9
B24: гор.блюдо | C24: №302/2004 | D24: Каша гречневая рассыпчатая | E24: 150 | G24: 242 | H24: 6.62 | I24: 5.39 | J24: 41.87
B25: гор.напиток | C25: ТТК 2022 г | D25: Напиток из замороженной черной смородины | E25: 180 | G25: 36 | H25: 0.08 | I25: 0.03 | J25: 8.49
A26: четверг | B26: хлеб | C26: ТТК | D26: Хлебная корзина (хлеб пш., хлеб рж.-пш.) | E26: 40 | G26: 91 | H26: 2.52 | I26: 0.36 | J26: 18.84
B27: закуска | C27: № 532/2013г, Самара | D27: Салат-бар (Свекла отвар.тертая, морковь свежая порциями, сыр, сухарики, масло раст. | E27: 60 | G27: 117 | H27: 1.56 | I27: 8.72 | J27: 5.73
A28: ИТОГО | E28: =SUM(E23:E27) -> 520 | G28: =SUM(G23:G27) -> 604 | H28: =SUM(H23:H27) -> 17.88 | I28: =SUM(I23:I27) -> 19.60 | J28: =SUM(J23:J27) -> 85.83
A29: завтрак | B29: гор.блюдо | C29: ТТК 2021 г | D29: Биточки рыбные из фарша минтая | E29: 90 | G29: 98 | H29: 9.8 | I29: 2.01 | J29: 10.2
B30: гор.блюдо | C30: №312/2015 г | D30: Пюре картофельное | E30: 150 | G30: 169 | H30: 3.28 | I30: 7.28 | J30: 22
B31: гор.напиток | C31: ТТК 2021 г | D31: Компот из плодов или ягод сушеных (урюк) | E31: 180 | G31: 50 | H31: 0.37 | I31: 0.03 | J31: 11.90
B32: хлеб | C32: ТТК | D32: Хлебная корзина (хлеб пш., хлеб рж.-пш.) | E32: 40 | G32: 91 | H32: 2.52 | I32: 0.36 | J32: 18.84
B33: закуска | C33: № 532/2013г, Самара | D33: Салат-бар (Помидоры свежие порциями, огурцы соленые, фасоль конс., сухарики, масло раст.) | E33: 60 | G33: 91 | H33: 1.67 | I33: 6.11 | J33: 7.09
B34: фрукт | C34: №532/2013 г | D34: Десерт фруктовый (яблоки) | E34: 80 | G34: 38 | H34: 0.32 | I34: 0.32 | J34: 7.84
A35: ИТОГО | E35: =SUM(E29:E34) -> 600 | G35: 537 | H35: =SUM(H29:H34) -> 17.96 | I35: =SUM(I29:I34) -> 16.11 | J35: =SUM(J29:J34) -> 77.87
A36: завтрак | B36: гор.блюдо | C36: №243/2015 г | D36: Сосиски отварные с соусом "Переменка" | E36: 110 | G36: 131 | H36: 10.1 | I36: 4.8 | J36: 11.75
A37: Суббота | B37: гор.блюдо | C37: №202/2015 | D37: Макаронные изделия отварные | E37: 150 | G37: 207 | H37: 5.64 | I37: 4.46 | J37: 35.94
B38: гор. Напиток | C38: ТТК 2022 г | D38: Компот из замороженной компотной смеси | E38: 180 | G38: 36 | H38: 0.09 | I38: 0.02 | J38: 8.69
B39: хлеб | C39: ТТК | D39: Хлебная корзина (хлеб пш., хлеб рж.-пш.) | E39: 40 | G39: 91 | H39: 2.52 | I39: 0.36 | J39: 18.84
B40: закуска | C40: № 532/2013г, Самара | D40: Салат-бар (Помидоры свежие порциями, огурцы свежие порциями, кукуруза конс., масло раст.) | E40: 60 | G40: 104 | H40: 0.63 | I40: 10.13 | J40: 2.32
A41: ИТОГО | E41: =SUM(E36:E40) -> 540 | G41: =SUM(G36:G40) -> 569 | H41: =SUM(H36:H40) -> 18.98 | I41: =SUM(I36:I40) -> 19.77 | J41: =SUM(J36:J40) -> 77.54
